[Event "*** Titled Tuesday Blitz"]
[Site "Chess.com"]
[Date "2019.05.07"]
[Round "9"]
[White "Satscho"]
[Black "SwamiChaturanga"]
[Result "0-1"]
[WhiteElo "2277"]
[BlackElo "2099"]
[TimeControl "180+2"]
[EndTime "15:07:53 PDT"]
[Termination "SwamiChaturanga won by resignation"]

1. e4 {[%clk 0:03:01.9]} 1... b6 {[%clk 0:02:59.8]} 2. d4 {[%clk 0:03:01.1]}
2... Bb7 {[%clk 0:03:01.2]} 3. Bd3 {[%clk 0:03:02.5]} 3... g6 {[%clk 0:03:02.6]}
4. Nf3 {[%clk 0:03:02.3]} 4... Bg7 {[%clk 0:03:04.3]} 5. O-O {[%clk 0:03:02.3]}
5... d6 {[%clk 0:03:05.7]} 6. Re1 {[%clk 0:03:00.5]} 6... e6 {[%clk 0:02:59.2]}
7. Bg5 {[%clk 0:02:50]} 7... Qd7 {[%clk 0:02:59.1]} 8. Qd2 {[%clk 0:02:49]} 8...
h6 {[%clk 0:03:00.1]} 9. Bh4 {[%clk 0:02:49.5]} 9... Ne7 {[%clk 0:02:54.8]} 10.
Nc3 {[%clk 0:02:45.6]} 10... g5 {[%clk 0:02:52.9]} 11. Bg3 {[%clk 0:02:46.7]}
11... g4 {[%clk 0:02:54]} 12. Nh4 {[%clk 0:02:47.4]} 12... Bxd4 {[%clk
0:02:54.8]} 13. Bb5 {[%clk 0:02:39]} 13... Nbc6 {[%clk 0:02:56.1]} 14. e5 {[%clk
0:02:30]} 14... dxe5 {[%clk 0:02:50.1]} 15. Ne4 {[%clk 0:02:31.1]} 15... O-O-O
{[%clk 0:02:46.3]} 16. Nf6 {[%clk 0:02:14.7]} 16... Qd6 {[%clk 0:02:45]} 17. c3
{[%clk 0:02:11.9]} 17... Bc5 {[%clk 0:02:23.2]} 18. Qe2 {[%clk 0:02:12.5]} 18...
Nf5 {[%clk 0:02:14]} 19. b4 {[%clk 0:02:06.7]} 19... Qe7 {[%clk 0:01:55.9]} 20.
Nxf5 {[%clk 0:01:53.1]} 20... Qxf6 {[%clk 0:01:37.1]} 21. Bh4 {[%clk 0:01:32.5]}
21... Qxf5 {[%clk 0:01:38.2]} 22. Bxd8 {[%clk 0:01:33.6]} 22... Bxb4 {[%clk
0:00:45.8]} 23. cxb4 {[%clk 0:01:27.1]} 23... Nd4 {[%clk 0:00:19.1]} 24. Qxe5
{[%clk 0:01:21]} 24... Rxd8 {[%clk 0:00:17.4]} 25. Qxf5 {[%clk 0:01:14.7]} 25...
exf5 {[%clk 0:00:19.3]} 26. Ba4 {[%clk 0:00:51]} 26... Be4 {[%clk 0:00:16.1]}
27. Rac1 {[%clk 0:00:49.7]} 27... Kb7 {[%clk 0:00:16.6]} 28. Bb3 {[%clk
0:00:41.8]} 28... Rd7 {[%clk 0:00:14.5]} 29. Bd1 {[%clk 0:00:37.2]} 29... a5
{[%clk 0:00:14]} 30. a3 {[%clk 0:00:37.4]} 30... axb4 {[%clk 0:00:14.7]} 31.
axb4 {[%clk 0:00:39.3]} 31... h5 {[%clk 0:00:15.7]} 32. Re3 {[%clk 0:00:36.2]}
32... h4 {[%clk 0:00:15.8]} 33. Rec3 {[%clk 0:00:36.4]} 33... h3 {[%clk
0:00:16.8]} 34. f3 {[%clk 0:00:34.4]} 34... gxf3 {[%clk 0:00:17.8]} 35. gxf3
{[%clk 0:00:35.2]} 35... Bd5 {[%clk 0:00:18.6]} 36. Kf2 {[%clk 0:00:33.2]} 36...
f4 {[%clk 0:00:19.7]} 37. Ba4 {[%clk 0:00:31.1]} 37... Re7 {[%clk 0:00:19.9]}
38. Bd1 {[%clk 0:00:27.4]} 38... Nb5 {[%clk 0:00:17]} 39. Rd3 {[%clk 0:00:26.9]}
39... Bc6 {[%clk 0:00:15.4]} 40. Rc4 {[%clk 0:00:26.1]} 40... Nd6 {[%clk
0:00:13.1]} 41. Rxf4 {[%clk 0:00:26.9]} 41... Re5 {[%clk 0:00:13.2]} 42. Rd2
{[%clk 0:00:19.4]} 42... Rg5 {[%clk 0:00:14]} 43. Rg4 {[%clk 0:00:19.5]} 43...
Rf5 {[%clk 0:00:14.5]} 44. Kg3 {[%clk 0:00:20.7]} 44... Rh5 {[%clk 0:00:13.7]}
45. Rh4 {[%clk 0:00:21.5]} 45... Nf5+ {[%clk 0:00:14.4]} 46. Kg4 {[%clk
0:00:19.9]} 46... Rxh4+ {[%clk 0:00:15]} 47. Kxf5 {[%clk 0:00:21.3]} 47... Rxb4
{[%clk 0:00:16.5]} 48. Kf6 {[%clk 0:00:19.7]} 48... Rf4+ {[%clk 0:00:13.5]} 49.
Kg5 {[%clk 0:00:20.7]} 49... Rc4 {[%clk 0:00:13.3]} 50. Kf6 {[%clk 0:00:21.8]}
50... Rc3 {[%clk 0:00:12.5]} 51. Rf2 {[%clk 0:00:20.3]} 51... Rd3 {[%clk
0:00:13.6]} 52. Be2 {[%clk 0:00:20.4]} 52... Rd2 {[%clk 0:00:14.8]} 53. Kxf7
{[%clk 0:00:21.8]} 53... Bb5 {[%clk 0:00:16.1]} 54. f4 {[%clk 0:00:16.9]} 54...
Rxe2 {[%clk 0:00:16.9]} 55. Kg7 {[%clk 0:00:18.6]} 55... Rxf2 {[%clk 0:00:18.3]}
0-1

[Event "*** Titled Tuesday Blitz"]
[Site "Chess.com"]
[Date "2019.05.07"]
[Round "9"]
[White "Keithonsky"]
[Black "LiamVrolijk"]
[Result "0-1"]
[WhiteElo "2378"]
[BlackElo "2526"]
[TimeControl "180+2"]
[EndTime "15:07:59 PDT"]
[Termination "LiamVrolijk won by checkmate"]

1. d4 {[%clk 0:03:01.9]} 1... Nf6 {[%clk 0:03:00.5]} 2. c4 {[%clk 0:03:03.3]}
2... e6 {[%clk 0:03:01.9]} 3. Nf3 {[%clk 0:03:04.1]} 3... b6 {[%clk 0:03:03.4]}
4. g3 {[%clk 0:03:05]} 4... Ba6 {[%clk 0:03:04.7]} 5. Qa4 {[%clk 0:03:05.5]}
5... Bb7 {[%clk 0:03:02.6]} 6. Bg2 {[%clk 0:03:06.1]} 6... c5 {[%clk 0:03:04.3]}
7. dxc5 {[%clk 0:03:07.2]} 7... bxc5 {[%clk 0:03:06.2]} 8. O-O {[%clk
0:03:08.8]} 8... Be7 {[%clk 0:03:07.7]} 9. Rd1 {[%clk 0:03:10.3]} 9... O-O
{[%clk 0:03:09.1]} 10. Nc3 {[%clk 0:03:12]} 10... Qb6 {[%clk 0:03:10.1]} 11. Qb5
{[%clk 0:03:08.4]} 11... d6 {[%clk 0:03:10.7]} 12. Bf4 {[%clk 0:03:08.9]} 12...
Rd8 {[%clk 0:03:05.6]} 13. Qxb6 {[%clk 0:03:09.3]} 13... axb6 {[%clk 0:03:07.5]}
14. Nb5 {[%clk 0:03:11.2]} 14... Ne8 {[%clk 0:03:08.8]} 15. a3 {[%clk
0:03:08.3]} 15... Nc6 {[%clk 0:03:04.5]} 16. Ne1 {[%clk 0:03:02.5]} 16... g5
{[%clk 0:03:03.6]} 17. Bd2 {[%clk 0:03:01.6]} 17... Rab8 {[%clk 0:03:02.2]} 18.
Bc3 {[%clk 0:03:01.1]} 18... h6 {[%clk 0:02:38.9]} 19. Nc2 {[%clk 0:03:00.4]}
19... Rd7 {[%clk 0:02:26.7]} 20. e4 {[%clk 0:02:59.2]} 20... Rbd8 {[%clk
0:02:27]} 21. Ne3 {[%clk 0:03:00.1]} 21... Bf6 {[%clk 0:02:24.1]} 22. Bxf6
{[%clk 0:02:37.5]} 22... Nxf6 {[%clk 0:02:26]} 23. Rd2 {[%clk 0:02:38.8]} 23...
Na5 {[%clk 0:02:14.8]} 24. Re2 {[%clk 0:02:25.2]} 24... Nxe4 {[%clk 0:02:02.2]}
25. Ng4 {[%clk 0:02:23.8]} 25... f5 {[%clk 0:02:03.6]} 26. Bxe4 {[%clk
0:02:20.4]} 26... Bxe4 {[%clk 0:01:58]} 27. Nf6+ {[%clk 0:02:20.8]} 27... Kf7
{[%clk 0:01:59.5]} 28. Nxe4 {[%clk 0:02:00.2]} 28... fxe4 {[%clk 0:02:00.5]} 29.
Rxe4 {[%clk 0:02:02.1]} 29... d5 {[%clk 0:02:00]} 30. cxd5 {[%clk 0:02:01]}
30... exd5 {[%clk 0:02:01.9]} 31. Re3 {[%clk 0:01:59.4]} 31... d4 {[%clk
0:02:00.2]} 32. Rf3+ {[%clk 0:02:00.4]} 32... Kg7 {[%clk 0:02:01.8]} 33. b4
{[%clk 0:02:00.2]} 33... Nc4 {[%clk 0:01:59.2]} 34. bxc5 {[%clk 0:01:57.3]}
34... bxc5 {[%clk 0:02:01.1]} 35. Rc1 {[%clk 0:01:46]} 35... Ne5 {[%clk
0:02:01.4]} 36. Rf5 {[%clk 0:01:45.4]} 36... Nd3 {[%clk 0:01:40.4]} 37. Rc2
{[%clk 0:01:45.9]} 37... Kg6 {[%clk 0:01:31]} 38. g4 {[%clk 0:01:46.9]} 38...
Re7 {[%clk 0:01:26.3]} 39. h4 {[%clk 0:01:28.2]} 39... Re4 {[%clk 0:00:51.5]}
40. h5+ {[%clk 0:01:23.3]} 40... Kg7 {[%clk 0:00:52.7]} 41. f3 {[%clk
0:01:20.3]} 41... Re1+ {[%clk 0:00:53.9]} 42. Kh2 {[%clk 0:01:18.8]} 42... Rde8
{[%clk 0:00:48.5]} 43. Nd6 {[%clk 0:01:13.7]} 43... R8e2+ {[%clk 0:00:48.1]} 44.
Rxe2 {[%clk 0:01:15]} 44... Rxe2+ {[%clk 0:00:50]} 45. Kg1 {[%clk 0:01:15.7]}
45... Nf4 {[%clk 0:00:46.1]} 46. Rxc5 {[%clk 0:01:08.1]} 46... d3 {[%clk
0:00:47.1]} 47. Ne4 {[%clk 0:01:04.3]} 47... d2 {[%clk 0:00:46.3]} 48. Rc7+
{[%clk 0:01:04.9]} 48... Kf8 {[%clk 0:00:46.7]} 49. Nxd2 {[%clk 0:01:03.4]}
49... Rxd2 {[%clk 0:00:48.6]} 50. Rc6 {[%clk 0:01:03.2]} 50... Kg7 {[%clk
0:00:49.4]} 51. Rc7+ {[%clk 0:01:04.2]} 51... Kg8 {[%clk 0:00:42.8]} 52. Rc6
{[%clk 0:01:05]} 52... Kg7 {[%clk 0:00:43.6]} 53. Rc7+ {[%clk 0:01:06.2]} 53...
Kf6 {[%clk 0:00:45.5]} 54. Rh7 {[%clk 0:01:07.5]} 54... Ne6 {[%clk 0:00:44.6]}
55. Rxh6+ {[%clk 0:01:08.5]} 55... Ke5 {[%clk 0:00:46.2]} 56. Rg6 {[%clk
0:01:00.5]} 56... Nd4 {[%clk 0:00:47.5]} 57. h6 {[%clk 0:00:46.7]} 57... Kf4
{[%clk 0:00:37.4]} 58. Rf6+ {[%clk 0:00:19]} 58... Kg3 {[%clk 0:00:38.4]} 59.
Kf1 {[%clk 0:00:20.5]} 59... Rd1# {[%clk 0:00:39.6]} 0-1

[Event "*** Titled Tuesday Blitz"]
[Site "Chess.com"]
[Date "2019.05.07"]
[Round "9"]
[White "novocane"]
[Black "Manukyan_Artak"]
[Result "1-0"]
[WhiteElo "2266"]
[BlackElo "2407"]
[TimeControl "180+2"]
[EndTime "15:08:09 PDT"]
[Termination "novocane won by resignation"]

1. d4 {[%clk 0:03:01.9]} 1... b6 {[%clk 0:02:58.7]} 2. e4 {[%clk 0:03:02.3]}
2... Bb7 {[%clk 0:03:00.6]} 3. Bd3 {[%clk 0:03:03.5]} 3... e6 {[%clk 0:03:00.9]}
4. Nf3 {[%clk 0:03:03.2]} 4... d5 {[%clk 0:02:59.8]} 5. Nbd2 {[%clk 0:02:59.2]}
5... Nf6 {[%clk 0:02:53.7]} 6. e5 {[%clk 0:02:52]} 6... Nfd7 {[%clk 0:02:54.6]}
7. O-O {[%clk 0:02:51.2]} 7... Ba6 {[%clk 0:02:54]} 8. Ne1 {[%clk 0:02:47.6]}
8... c5 {[%clk 0:02:52.5]} 9. f4 {[%clk 0:02:41.9]} 9... g6 {[%clk 0:02:51.9]}
10. Bxa6 {[%clk 0:02:35.8]} 10... Nxa6 {[%clk 0:02:52.4]} 11. Qe2 {[%clk
0:02:36.8]} 11... Nc7 {[%clk 0:02:51.5]} 12. Ndf3 {[%clk 0:02:24.8]} 12... Qc8
{[%clk 0:02:42]} 13. c3 {[%clk 0:02:22.3]} 13... Qa6 {[%clk 0:02:42.7]} 14. Qf2
{[%clk 0:02:21.9]} 14... h5 {[%clk 0:02:37.6]} 15. Be3 {[%clk 0:02:20.1]} 15...
Be7 {[%clk 0:02:27.7]} 16. Kh1 {[%clk 0:02:16.7]} 16... O-O-O {[%clk 0:02:25.2]}
17. b3 {[%clk 0:02:08.9]} 17... Kb8 {[%clk 0:02:19.3]} 18. a4 {[%clk 0:02:08.1]}
18... c4 {[%clk 0:02:14.8]} 19. b4 {[%clk 0:01:59.6]} 19... Qb7 {[%clk
0:02:10.1]} 20. b5 {[%clk 0:02:00.6]} 20... a5 {[%clk 0:02:05.1]} 21. bxa6
{[%clk 0:01:59.8]} 21... Qxa6 {[%clk 0:02:03.5]} 22. Nc2 {[%clk 0:02:00]} 22...
Ka7 {[%clk 0:01:58.5]} 23. Rfb1 {[%clk 0:01:59.6]} 23... Nb8 {[%clk 0:01:57.2]}
24. Rb5 {[%clk 0:01:50.2]} 24... Nc6 {[%clk 0:01:53.3]} 25. Rb2 {[%clk
0:01:33.6]} 25... Na5 {[%clk 0:01:52.8]} 26. Nb4 {[%clk 0:01:29.6]} 26... Bxb4
{[%clk 0:01:49.8]} 27. Rxb4 {[%clk 0:01:19.6]} 27... Nb3 {[%clk 0:01:51.7]} 28.
Ra3 {[%clk 0:01:19.8]} 28... Qb7 {[%clk 0:01:13.2]} 29. a5 {[%clk 0:01:04.2]}
29... b5 {[%clk 0:01:09.8]} 30. Nd2 {[%clk 0:00:46]} 30... Nxd2 {[%clk
0:01:03.1]} 31. Qxd2 {[%clk 0:00:35.8]} 31... Na6 {[%clk 0:01:02.7]} 32. Rb1
{[%clk 0:00:34.8]} 32... Rb8 {[%clk 0:00:44.8]} 33. Ra2 {[%clk 0:00:32.6]} 33...
Qd7 {[%clk 0:00:29.5]} 34. Rab2 {[%clk 0:00:29.1]} 34... Rb7 {[%clk 0:00:30.6]}
35. h3 {[%clk 0:00:27.4]} 35... Rhb8 {[%clk 0:00:31.8]} 36. Qf2 {[%clk
0:00:27.5]} 36... b4 {[%clk 0:00:30.3]} 37. cxb4 {[%clk 0:00:22.5]} 37... Rxb4
{[%clk 0:00:32.2]} 38. Rxb4 {[%clk 0:00:22.2]} 38... Rxb4 {[%clk 0:00:34.1]} 39.
Rxb4 {[%clk 0:00:22.1]} 39... Nxb4 {[%clk 0:00:36]} 40. Qb2 {[%clk 0:00:19.4]}
40... Qa4 {[%clk 0:00:36.3]} 41. Bd2 {[%clk 0:00:17.7]} 41... Qb3 {[%clk
0:00:32.4]} 42. Qa1 {[%clk 0:00:11.5]} 42... Nc2 {[%clk 0:00:27.6]} 43. Qc1
{[%clk 0:00:11.1]} 43... Ka6 {[%clk 0:00:14.3]} 44. Qd1 {[%clk 0:00:08.8]} 44...
Nxd4 {[%clk 0:00:14.7]} 45. Qe1 {[%clk 0:00:07.5]} 45... Nc6 {[%clk 0:00:09.3]}
46. Qh4 {[%clk 0:00:06.7]} 46... Qd1+ {[%clk 0:00:09.8]} 47. Be1 {[%clk
0:00:07.8]} 47... Qd2 {[%clk 0:00:11]} 48. Bxd2 {[%clk 0:00:08.2]} 48... d4
{[%clk 0:00:12]} 49. Qf2 {[%clk 0:00:08.6]} 49... c3 {[%clk 0:00:13]} 50. Bxc3
{[%clk 0:00:09.6]} 50... dxc3 {[%clk 0:00:14.9]} 51. Qc5 {[%clk 0:00:10]} 51...
Nxa5 {[%clk 0:00:15.2]} 52. Qxc3 {[%clk 0:00:10.7]} 52... Kb5 {[%clk 0:00:15.6]}
53. Qc7 {[%clk 0:00:11.5]} 53... Nc4 {[%clk 0:00:15.4]} 54. Qxf7 {[%clk
0:00:12.5]} 54... Ne3 {[%clk 0:00:16.8]} 55. Qxe6 {[%clk 0:00:13.5]} 55... Kb4
{[%clk 0:00:17.8]} 56. Qxg6 {[%clk 0:00:14.4]} 1-0

[Event "*** Titled Tuesday Blitz"]
[Site "Chess.com"]
[Date "2019.05.07"]
[Round "9"]
[White "Casper_Schoppen"]
[Black "2nd_life"]
[Result "1/2-1/2"]
[WhiteElo "2633"]
[BlackElo "2427"]
[TimeControl "180+2"]
[EndTime "15:08:15 PDT"]
[Termination "Game drawn by agreement"]

1. c4 {[%clk 0:03:01.9]} 1... e5 {[%clk 0:02:58.7]} 2. Nc3 {[%clk 0:03:01.8]}
2... Bb4 {[%clk 0:02:58]} 3. Nd5 {[%clk 0:03:01.6]} 3... a5 {[%clk 0:02:57.4]}
4. a3 {[%clk 0:02:55.2]} 4... Bc5 {[%clk 0:02:46.9]} 5. e3 {[%clk 0:02:52.8]}
5... c6 {[%clk 0:02:37.3]} 6. Nc3 {[%clk 0:02:52.4]} 6... Qe7 {[%clk 0:02:27.5]}
7. Qc2 {[%clk 0:02:50.1]} 7... Nf6 {[%clk 0:02:25.2]} 8. Nf3 {[%clk 0:02:31.7]}
8... O-O {[%clk 0:02:09.7]} 9. Ng5 {[%clk 0:01:58.6]} 9... d6 {[%clk 0:02:00.9]}
10. Bd3 {[%clk 0:01:52.7]} 10... h6 {[%clk 0:01:59.9]} 11. Nge4 {[%clk
0:01:48.8]} 11... Nbd7 {[%clk 0:01:58.3]} 12. O-O {[%clk 0:01:48]} 12... Nxe4
{[%clk 0:01:53.6]} 13. Nxe4 {[%clk 0:01:49.5]} 13... Nf6 {[%clk 0:01:54.6]} 14.
Nxc5 {[%clk 0:01:48.9]} 14... dxc5 {[%clk 0:01:55.2]} 15. b3 {[%clk 0:01:47.7]}
15... Rd8 {[%clk 0:01:38.8]} 16. Be2 {[%clk 0:01:38.8]} 16... Bg4 {[%clk
0:01:29.6]} 17. f3 {[%clk 0:01:37.6]} 17... Bh5 {[%clk 0:01:29.1]} 18. Bb2
{[%clk 0:01:37.8]} 18... Bg6 {[%clk 0:01:25]} 19. Qc3 {[%clk 0:01:33.8]} 19...
Nd7 {[%clk 0:01:10.2]} 20. f4 {[%clk 0:01:29.5]} 20... f6 {[%clk 0:01:10.7]} 21.
f5 {[%clk 0:01:29.1]} 21... Bf7 {[%clk 0:01:08.3]} 22. e4 {[%clk 0:01:30.4]}
22... Nf8 {[%clk 0:01:01.6]} 23. d3 {[%clk 0:01:29.4]} 23... b6 {[%clk
0:01:00.9]} 24. Rfb1 {[%clk 0:01:25.1]} 24... Qd6 {[%clk 0:00:52.5]} 25. Bc1
{[%clk 0:01:23.5]} 25... Qd4+ {[%clk 0:00:49]} 26. Qxd4 {[%clk 0:01:23.5]} 26...
cxd4 {[%clk 0:00:50.9]} 27. b4 {[%clk 0:01:20.4]} 27... axb4 {[%clk 0:00:38.7]}
28. axb4 {[%clk 0:01:20.6]} 28... Nd7 {[%clk 0:00:31.9]} 29. Kf2 {[%clk
0:01:15.3]} 29... Kf8 {[%clk 0:00:21.4]} 30. g4 {[%clk 0:01:10.8]} 30... Ke7
{[%clk 0:00:21.7]} 31. h4 {[%clk 0:01:11.2]} 31... b5 {[%clk 0:00:19.7]} 32. c5
{[%clk 0:01:06.5]} 32... Ba2 {[%clk 0:00:07.8]} 33. Rb2 {[%clk 0:01:06.6]} 33...
Bf7 {[%clk 0:00:08.7]} 34. Rxa8 {[%clk 0:00:57.7]} 34... Rxa8 {[%clk 0:00:09.3]}
35. Bd2 {[%clk 0:00:47.8]} 35... Ra2 {[%clk 0:00:08.9]} 36. Rxa2 {[%clk
0:00:48.5]} 36... Bxa2 {[%clk 0:00:10.8]} 37. Kg3 {[%clk 0:00:47.1]} 37... Bf7
{[%clk 0:00:11.6]} 38. g5 {[%clk 0:00:47.1]} 38... hxg5 {[%clk 0:00:12.6]} 39.
hxg5 {[%clk 0:00:48.8]} 39... Kf8 {[%clk 0:00:13.7]} 40. Kh4 {[%clk 0:00:47]}
40... Kg8 {[%clk 0:00:09.5]} 41. Be1 {[%clk 0:00:44.9]} 41... Nb8 {[%clk
0:00:08.8]} 42. Kg4 {[%clk 0:00:40.2]} 42... Na6 {[%clk 0:00:09.1]} 43. Bd1
{[%clk 0:00:37.3]} 43... Kf8 {[%clk 0:00:08.8]} 44. Kg3 {[%clk 0:00:24.3]} 44...
Ke7 {[%clk 0:00:08.5]} 45. Bd2 {[%clk 0:00:25.7]} 45... Kf8 {[%clk 0:00:04.7]}
46. Kh4 {[%clk 0:00:27.1]} 46... Ke7 {[%clk 0:00:05.6]} 47. Be2 {[%clk
0:00:21.8]} 47... Kf8 {[%clk 0:00:06.7]} 48. Bf3 {[%clk 0:00:22.1]} 48... Ke7
{[%clk 0:00:08]} 49. Be1 {[%clk 0:00:23.2]} 49... Kf8 {[%clk 0:00:09.3]} 50. Be2
{[%clk 0:00:24.8]} 50... Ke7 {[%clk 0:00:10.5]} 51. Kg4 {[%clk 0:00:26.5]} 51...
Kf8 {[%clk 0:00:11.7]} 52. Bh4 {[%clk 0:00:25.8]} 52... Ke7 {[%clk 0:00:12.6]}
53. Be1 {[%clk 0:00:25]} 53... Kf8 {[%clk 0:00:13.5]} 54. Bf3 {[%clk 0:00:26.4]}
54... Ke7 {[%clk 0:00:14.6]} 55. Kh4 {[%clk 0:00:27.9]} 55... Kf8 {[%clk
0:00:15.6]} 56. Bd2 {[%clk 0:00:28.9]} 56... Ke7 {[%clk 0:00:16.9]} 57. Bh5
{[%clk 0:00:30.1]} 57... Bxh5 {[%clk 0:00:17.6]} 58. Kxh5 {[%clk 0:00:31.6]}
58... Kf7 {[%clk 0:00:19]} 59. Be1 {[%clk 0:00:32.6]} 59... Nc7 {[%clk
0:00:18.5]} 60. gxf6 {[%clk 0:00:31]} 60... gxf6 {[%clk 0:00:19.3]} 61. Kh6
{[%clk 0:00:31.9]} 61... Ne8 {[%clk 0:00:19.4]} 62. Kh7 {[%clk 0:00:32]} 62...
Ng7 {[%clk 0:00:20]} 63. Kh6 {[%clk 0:00:33.4]} 63... Ne8 {[%clk 0:00:21]} 64.
Bg3 {[%clk 0:00:33.1]} 64... Nc7 {[%clk 0:00:21.7]} 65. Bh4 {[%clk 0:00:33.7]}
65... Ne8 {[%clk 0:00:22.3]} 66. Bg3 {[%clk 0:00:34.4]} 66... Nc7 {[%clk
0:00:23.3]} 67. Bf2 {[%clk 0:00:34.1]} 1/2-1/2

[Event "*** Titled Tuesday Blitz"]
[Site "Chess.com"]
[Date "2019.05.07"]
[Round "9"]
[White "Lagmantr"]
[Black "Orest_Vovk"]
[Result "0-1"]
[WhiteElo "2571"]
[BlackElo "2467"]
[TimeControl "180+2"]
[EndTime "15:08:18 PDT"]
[Termination "Orest_Vovk won by resignation"]

1. e4 {[%clk 0:03:01.6]} 1... e5 {[%clk 0:02:59.3]} 2. Nf3 {[%clk 0:03:01.9]}
2... Nf6 {[%clk 0:02:59.6]} 3. Nc3 {[%clk 0:03:02.3]} 3... Nc6 {[%clk
0:02:59.9]} 4. Be2 {[%clk 0:03:02.8]} 4... Bc5 {[%clk 0:03:00.3]} 5. Nxe5 {[%clk
0:03:03.8]} 5... Nxe5 {[%clk 0:02:45.1]} 6. d4 {[%clk 0:03:03.6]} 6... Bd6
{[%clk 0:02:47]} 7. dxe5 {[%clk 0:03:04.5]} 7... Bxe5 {[%clk 0:02:48.9]} 8. Nb5
{[%clk 0:03:05.8]} 8... a6 {[%clk 0:02:41.2]} 9. f4 {[%clk 0:03:06.1]} 9... Nxe4
{[%clk 0:02:20.7]} 10. fxe5 {[%clk 0:03:01]} 10... Qh4+ {[%clk 0:02:13.9]} 11.
g3 {[%clk 0:02:47.5]} 11... Nxg3 {[%clk 0:02:14.6]} 12. Nxc7+ {[%clk 0:02:29.2]}
12... Kd8 {[%clk 0:02:11.3]} 13. Bg5+ {[%clk 0:01:30.4]} 13... Qxg5 {[%clk
0:02:08.7]} 14. Nxa8 {[%clk 0:01:23.5]} 14... Nxh1 {[%clk 0:02:06.2]} 15. Qd4
{[%clk 0:01:24.4]} 15... Re8 {[%clk 0:01:22.1]} 16. Qb6+ {[%clk 0:01:21.5]}
16... Ke7 {[%clk 0:01:22.8]} 17. Qc5+ {[%clk 0:01:03.9]} 17... Kd8 {[%clk
0:01:21.2]} 18. Qa5+ {[%clk 0:01:04.5]} 18... Ke7 {[%clk 0:01:18.4]} 19. Nc7
{[%clk 0:00:32.8]} 19... Qg1+ {[%clk 0:01:09.7]} 20. Kd2 {[%clk 0:00:29.8]}
20... Qxa1 {[%clk 0:00:57.3]} 21. Qb4+ {[%clk 0:00:20.4]} 21... Kd8 {[%clk
0:00:55.3]} 22. Qb6 {[%clk 0:00:13.7]} 22... Rxe5 {[%clk 0:00:37.3]} 23. Nd5+
{[%clk 0:00:10.3]} 23... Ke8 {[%clk 0:00:33.3]} 24. Nc7+ {[%clk 0:00:11]} 24...
Ke7 {[%clk 0:00:25.3]} 25. Qb4+ {[%clk 0:00:11.3]} 25... d6 {[%clk 0:00:24]} 26.
Qh4+ {[%clk 0:00:12.7]} 26... g5 {[%clk 0:00:22.2]} 27. Qa4 {[%clk 0:00:13.4]}
27... b5 {[%clk 0:00:15.2]} 28. Qd4 {[%clk 0:00:13.4]} 28... Qxa2 {[%clk
0:00:14.1]} 29. Qa7 {[%clk 0:00:14.2]} 29... Bd7 {[%clk 0:00:13.7]} 30. Bg4
{[%clk 0:00:12]} 30... Bxg4 {[%clk 0:00:07.6]} 31. Nd5+ {[%clk 0:00:11.8]} 31...
Ke6 {[%clk 0:00:09]} 32. Nc7+ {[%clk 0:00:07.3]} 32... Kf6 {[%clk 0:00:09.8]}
33. Qd4 {[%clk 0:00:06.8]} 33... Qc4 {[%clk 0:00:08]} 34. Qxd6+ {[%clk
0:00:07.8]} 34... Be6 {[%clk 0:00:09]} 35. Ne8+ {[%clk 0:00:09.1]} 35... Kf5
{[%clk 0:00:09.6]} 36. Ng7+ {[%clk 0:00:09.6]} 36... Kg6 {[%clk 0:00:10.5]} 37.
Qxe5 {[%clk 0:00:10.5]} 37... Qd5+ {[%clk 0:00:11.7]} 38. Qxd5 {[%clk
0:00:11.8]} 38... Bxd5 {[%clk 0:00:13.6]} 39. Ne8 {[%clk 0:00:13.3]} 39... Nf2
{[%clk 0:00:14.4]} 40. Nc7 {[%clk 0:00:14.2]} 40... Bb7 {[%clk 0:00:15.4]} 41.
Kc3 {[%clk 0:00:13.3]} 41... f5 {[%clk 0:00:15.6]} 42. Kd4 {[%clk 0:00:13.9]}
42... f4 {[%clk 0:00:16.4]} 43. Kc5 {[%clk 0:00:14.7]} 43... g4 {[%clk
0:00:16.9]} 44. Kb6 {[%clk 0:00:15.8]} 44... Bc8 {[%clk 0:00:18.2]} 45. Nd5
{[%clk 0:00:16.6]} 45... Kg5 {[%clk 0:00:16.8]} 46. Ne7 {[%clk 0:00:17.4]} 46...
Bd7 {[%clk 0:00:16.5]} 47. Kxa6 {[%clk 0:00:18.1]} 47... g3 {[%clk 0:00:17.8]}
48. hxg3 {[%clk 0:00:16.6]} 48... fxg3 {[%clk 0:00:19.7]} 49. Nd5 {[%clk
0:00:16.9]} 49... g2 {[%clk 0:00:20.6]} 50. c4 {[%clk 0:00:18.7]} 50... bxc4
{[%clk 0:00:21.3]} 51. Nb6 {[%clk 0:00:17.9]} 51... Bc6 {[%clk 0:00:21.7]} 52.
b4 {[%clk 0:00:15]} 52... cxb3 {[%clk 0:00:21.9]} 53. Ka7 {[%clk 0:00:16.9]}
53... b2 {[%clk 0:00:22.7]} 54. Kb8 {[%clk 0:00:18.4]} 54... b1=Q {[%clk
0:00:23.4]} 55. Kc7 {[%clk 0:00:19.5]} 55... Qxb6+ {[%clk 0:00:24.4]} 56. Kxb6
{[%clk 0:00:20.6]} 56... g1=Q {[%clk 0:00:25.8]} 57. Kc7 {[%clk 0:00:21]} 57...
h5 {[%clk 0:00:26.6]} 58. Kc8 {[%clk 0:00:22.5]} 58... h4 {[%clk 0:00:28]} 59.
Kc7 {[%clk 0:00:24.2]} 59... h3 {[%clk 0:00:29.4]} 60. Kc8 {[%clk 0:00:26.1]}
60... h2 {[%clk 0:00:30.8]} 61. Kc7 {[%clk 0:00:28]} 61... Bg2 {[%clk
0:00:31.8]} 62. Kc8 {[%clk 0:00:29.9]} 62... h1=Q {[%clk 0:00:33]} 63. Kd7
{[%clk 0:00:31.3]} 63... Qh6 {[%clk 0:00:33.8]} 64. Ke7 {[%clk 0:00:33.2]} 64...
Qe1+ {[%clk 0:00:34.4]} 0-1